[Event "Early-Titled-Tuesday-Blitz-September-05-2023"]
[Site "Chess.com"]
[Date "2023.09.05"]
[Round "4"]
[White "ElenaPershina"]
[Black "Dewarfd"]
[Result "1/2-1/2"]
[WhiteElo "2326"]
[BlackElo "2146"]
[TimeControl "180+1"]
[EndTime "8:39:18 PDT"]
[Termination "Game drawn by repetition"]

1. c4 {[%clk 0:03:00.9]} 1... e6 {[%clk 0:03:00]} 2. g3 {[%clk 0:03:00.8]} 2...
d5 {[%clk 0:03:00.1]} 3. Bg2 {[%clk 0:03:01.2]} 3... Nf6 {[%clk 0:02:58.3]} 4.
Nf3 {[%clk 0:03:01.3]} 4... c5 {[%clk 0:02:58.3]} 5. O-O {[%clk 0:02:57.5]} 5...
Nc6 {[%clk 0:02:55.1]} 6. cxd5 {[%clk 0:02:55.3]} 6... exd5 {[%clk 0:02:55.3]}
7. d4 {[%clk 0:02:54.8]} 7... Be7 {[%clk 0:02:51.2]} 8. b3 {[%clk 0:02:51.2]}
8... Ne4 {[%clk 0:02:48.1]} 9. Bb2 {[%clk 0:02:46.6]} 9... Bf6 {[%clk
0:02:47.8]} 10. Nbd2 {[%clk 0:02:38.8]} 10... cxd4 {[%clk 0:02:35.7]} 11. Ne1
{[%clk 0:02:17.8]} 11... Nc3 {[%clk 0:02:13.4]} 12. Qb1 {[%clk 0:02:00.3]} 12...
Nxe2+ {[%clk 0:02:08.2]} 13. Kh1 {[%clk 0:02:00.1]} 13... O-O {[%clk 0:01:54.6]}
14. Nef3 {[%clk 0:01:49.2]} 14... Bg4 {[%clk 0:01:47.9]} 15. Qd3 {[%clk
0:01:45.6]} 15... Bxf3 {[%clk 0:01:42.3]} 16. Nxf3 {[%clk 0:01:43]} 16... Nc3
{[%clk 0:01:40.7]} 17. Nxd4 {[%clk 0:01:36.2]} 17... Bxd4 {[%clk 0:01:11.8]} 18.
Bxc3 {[%clk 0:01:35]} 18... Bxc3 {[%clk 0:00:52.6]} 19. Qxc3 {[%clk 0:01:35.9]}
19... d4 {[%clk 0:00:53.2]} 20. Qd3 {[%clk 0:01:32.8]} 20... Nb4 {[%clk
0:00:45.4]} 21. Qc4 {[%clk 0:01:19]} 21... Qb6 {[%clk 0:00:42.6]} 22. Rad1
{[%clk 0:01:16.2]} 22... Rad8 {[%clk 0:00:42.6]} 23. Rd2 {[%clk 0:01:05.1]}
23... Nc6 {[%clk 0:00:37.7]} 24. Rfd1 {[%clk 0:01:03.3]} 24... Rd6 {[%clk
0:00:34.9]} 25. Bxc6 {[%clk 0:00:54.9]} 25... Rxc6 {[%clk 0:00:21.3]} 26. Qxd4
{[%clk 0:00:54.1]} 26... Qxd4 {[%clk 0:00:20.2]} 27. Rxd4 {[%clk 0:00:55]} 27...
h6 {[%clk 0:00:16.4]} 28. Kg2 {[%clk 0:00:53.9]} 28... Rc2 {[%clk 0:00:15.9]}
29. R1d2 {[%clk 0:00:53.3]} 29... Rfc8 {[%clk 0:00:14.4]} 30. Rd7 {[%clk
0:00:34.1]} 30... Rxd2 {[%clk 0:00:11.7]} 31. Rxd2 {[%clk 0:00:32.8]} 31... Rc7
{[%clk 0:00:11.9]} 32. h4 {[%clk 0:00:30.3]} 32... g6 {[%clk 0:00:11.9]} 33. Kf3
{[%clk 0:00:29.6]} 33... Kg7 {[%clk 0:00:12.4]} 34. Ke4 {[%clk 0:00:28.6]} 34...
Re7+ {[%clk 0:00:10.5]} 35. Kf3 {[%clk 0:00:26.7]} 35... Rc7 {[%clk 0:00:10.6]}
36. g4 {[%clk 0:00:20.9]} 36... Re7 {[%clk 0:00:09.4]} 37. Kf4 {[%clk
0:00:17.5]} 37... Rc7 {[%clk 0:00:08]} 38. f3 {[%clk 0:00:17.2]} 38... a6 {[%clk
0:00:07]} 39. g5 {[%clk 0:00:15]} 39... hxg5+ {[%clk 0:00:06.3]} 40. hxg5 {[%clk
0:00:14.8]} 40... Rc5 {[%clk 0:00:06]} 41. Rd7 {[%clk 0:00:11.9]} 41... Rf5+
{[%clk 0:00:04.9]} 42. Kg4 {[%clk 0:00:11.5]} 42... Rb5 {[%clk 0:00:05]} 43. f4
{[%clk 0:00:11.4]} 43... a5 {[%clk 0:00:05.8]} 44. Rc7 {[%clk 0:00:10.2]} 44...
b6 {[%clk 0:00:04.1]} 45. Rb7 {[%clk 0:00:09.8]} 45... Rb4 {[%clk 0:00:03.9]}
46. Kf3 {[%clk 0:00:08.1]} 46... a4 {[%clk 0:00:04.3]} 47. bxa4 {[%clk 0:00:07]}
47... Rxa4 {[%clk 0:00:05.1]} 48. Rxb6 {[%clk 0:00:07.3]} 48... Ra3+ {[%clk
0:00:05.3]} 49. Kg4 {[%clk 0:00:07.1]} 49... Rxa2 {[%clk 0:00:06.2]} 50. Rb7
{[%clk 0:00:06.4]} 50... Ra4 {[%clk 0:00:06.1]} 51. Rc7 {[%clk 0:00:06.2]} 51...
Ra1 {[%clk 0:00:06.5]} 52. Rb7 {[%clk 0:00:06.4]} 52... Rg1+ {[%clk 0:00:06.8]}
53. Kf3 {[%clk 0:00:06.2]} 53... Rf1+ {[%clk 0:00:07.2]} 54. Kg4 {[%clk
0:00:06.4]} 54... Rg1+ {[%clk 0:00:07.4]} 55. Kf3 {[%clk 0:00:06.7]} 55... Rf1+
{[%clk 0:00:07.7]} 56. Kg4 {[%clk 0:00:07]} 56... Re1 {[%clk 0:00:07.8]} 57. Kf3
{[%clk 0:00:07]} 57... Rc1 {[%clk 0:00:06.8]} 58. Kg4 {[%clk 0:00:07.2]} 58...
Rc3 {[%clk 0:00:06.8]} 59. Ra7 {[%clk 0:00:06.5]} 59... Rb3 {[%clk 0:00:06]} 60.
Rc7 {[%clk 0:00:06.3]} 60... Ra3 {[%clk 0:00:06.6]} 61. Rb7 {[%clk 0:00:06.6]}
61... Ra1 {[%clk 0:00:07]} 62. Rc7 {[%clk 0:00:06.7]} 62... Rg1+ {[%clk
0:00:07.7]} 63. Kf3 {[%clk 0:00:07]} 63... Rf1+ {[%clk 0:00:08.2]} 64. Kg4
{[%clk 0:00:07.6]} 64... Rg1+ {[%clk 0:00:08.6]} 65. Kf3 {[%clk 0:00:07.8]}
65... Rf1+ {[%clk 0:00:09]} 66. Kg4 {[%clk 0:00:08.1]} 66... Rg1+ {[%clk
0:00:09.2]} 1/2-1/2

[Event "Early-Titled-Tuesday-Blitz-September-05-2023"]
[Site "Chess.com"]
[Date "2023.09.05"]
[Round "4"]
[White "Amirreza_p"]
[Black "artin10862"]
[Result "0-1"]
[WhiteElo "2610"]
[BlackElo "2973"]
[TimeControl "180+1"]
[EndTime "8:39:19 PDT"]
[Termination "artin10862 won on time"]

1. Nf3 {[%clk 0:03:00.9]} 1... c5 {[%clk 0:02:57.4]} 2. c4 {[%clk 0:02:55.3]}
2... Nc6 {[%clk 0:02:54.4]} 3. b3 {[%clk 0:02:52.4]} 3... Nf6 {[%clk 0:02:43.7]}
4. Bb2 {[%clk 0:02:50.6]} 4... d5 {[%clk 0:02:43]} 5. cxd5 {[%clk 0:02:47.8]}
5... Nxd5 {[%clk 0:02:43.9]} 6. Nc3 {[%clk 0:02:37.6]} 6... e5 {[%clk
0:02:22.7]} 7. e3 {[%clk 0:02:36]} 7... Ndb4 {[%clk 0:02:17.6]} 8. d3 {[%clk
0:02:09.7]} 8... Bf5 {[%clk 0:02:10.8]} 9. Ne4 {[%clk 0:01:58.4]} 9... Qa5
{[%clk 0:01:58.1]} 10. Bc3 {[%clk 0:00:36.2]} 10... Rd8 {[%clk 0:01:39.4]} 11.
Nfd2 {[%clk 0:00:34]} 11... Qc7 {[%clk 0:01:25.9]} 12. Qb1 {[%clk 0:00:23.8]}
12... Qd7 {[%clk 0:01:19]} 13. a3 {[%clk 0:00:16.5]} 13... Nxd3+ {[%clk
0:01:15.9]} 14. Bxd3 {[%clk 0:00:17.4]} 14... Qxd3 {[%clk 0:01:16.7]} 15. Qxd3
{[%clk 0:00:18.3]} 15... Rxd3 {[%clk 0:01:17.5]} 16. Ke2 {[%clk 0:00:19]} 16...
Rd8 {[%clk 0:01:06.9]} 17. f3 {[%clk 0:00:19.5]} 17... Be7 {[%clk 0:01:05.2]}
18. Rhd1 {[%clk 0:00:19.7]} 18... O-O {[%clk 0:00:27.6]} 19. Nc4 {[%clk
0:00:18.8]} 19... Be6 {[%clk 0:00:23.1]} 20. Ned6 {[%clk 0:00:16.4]} 20... Rd7
{[%clk 0:00:16.3]} 21. Rab1 {[%clk 0:00:10.4]} 21... a6 {[%clk 0:00:16.5]} 22.
a4 {[%clk 0:00:10.2]} 22... Rfd8 {[%clk 0:00:14.4]} 23. Ne4 {[%clk 0:00:10.7]}
23... Rxd1 {[%clk 0:00:13.5]} 24. Rxd1 {[%clk 0:00:11.6]} 24... Rxd1 {[%clk
0:00:13.6]} 25. Kxd1 {[%clk 0:00:12.5]} 25... b5 {[%clk 0:00:13.5]} 26. axb5
{[%clk 0:00:13.2]} 26... axb5 {[%clk 0:00:14.4]} 27. Ncd2 {[%clk 0:00:10.8]}
27... f6 {[%clk 0:00:12.5]} 28. Nf2 {[%clk 0:00:11.4]} 28... Kf7 {[%clk
0:00:12.6]} 29. Kc2 {[%clk 0:00:11.7]} 29... Ke8 {[%clk 0:00:12.8]} 30. e4
{[%clk 0:00:12.3]} 30... c4 {[%clk 0:00:09.7]} 31. bxc4 {[%clk 0:00:11.7]} 31...
bxc4 {[%clk 0:00:09.8]} 32. Nd1 {[%clk 0:00:12.3]} 32... Nd4+ {[%clk 0:00:08.4]}
33. Kb2 {[%clk 0:00:12.7]} 33... Nb5 {[%clk 0:00:05.8]} 34. Ne3 {[%clk
0:00:12.2]} 34... Ba3+ {[%clk 0:00:05.8]} 35. Kc2 {[%clk 0:00:12.7]} 35... Nxc3
{[%clk 0:00:05.6]} 36. Kxc3 {[%clk 0:00:13.6]} 36... Bc5 {[%clk 0:00:06.3]} 37.
Nexc4 {[%clk 0:00:13.3]} 37... Bg1 {[%clk 0:00:07.2]} 38. h3 {[%clk 0:00:13.4]}
38... Bd4+ {[%clk 0:00:07.5]} 39. Kd3 {[%clk 0:00:13.2]} 39... Ba7 {[%clk
0:00:08.3]} 40. Ne3 {[%clk 0:00:13.7]} 40... Bc8 {[%clk 0:00:08.6]} 41. Nd5
{[%clk 0:00:14.2]} 41... Ba6+ {[%clk 0:00:09.3]} 42. Nc4 {[%clk 0:00:14.5]}
42... Kf7 {[%clk 0:00:10]} 43. Kc3 {[%clk 0:00:14.9]} 43... Kg6 {[%clk
0:00:09.4]} 44. Nb4 {[%clk 0:00:15]} 44... Bd4+ {[%clk 0:00:08.8]} 45. Kb3
{[%clk 0:00:14.8]} 45... Bb5 {[%clk 0:00:08.8]} 46. Nd6 {[%clk 0:00:14]} 46...
Bf1 {[%clk 0:00:08.4]} 47. Nf5 {[%clk 0:00:14.4]} 47... Bf2 {[%clk 0:00:07.1]}
48. g4 {[%clk 0:00:06.1]} 48... Bxh3 {[%clk 0:00:07.1]} 49. Nd3 {[%clk
0:00:06.8]} 49... Ba7 {[%clk 0:00:06.9]} 50. Kc3 {[%clk 0:00:05]} 50... Kg5
{[%clk 0:00:05.2]} 51. Kd2 {[%clk 0:00:04.9]} 51... Bb6 {[%clk 0:00:04.3]} 52.
Ke2 {[%clk 0:00:04.1]} 52... Bg2 {[%clk 0:00:04.4]} 53. Nd6 {[%clk 0:00:04.5]}
53... Ba5 {[%clk 0:00:02.9]} 54. Nf7+ {[%clk 0:00:03.8]} 54... Kh4 {[%clk
0:00:03.5]} 55. Nd6 {[%clk 0:00:01.6]} 55... Kg3 {[%clk 0:00:03]} 56. Nf5+
{[%clk 0:00:02.2]} 56... Kh2 {[%clk 0:00:03.7]} 57. Ne3 {[%clk 0:00:02.2]} 57...
Bh3 {[%clk 0:00:03.7]} 58. Nf5 {[%clk 0:00:02.7]} 58... g6 {[%clk 0:00:04.1]}
59. Ne3 {[%clk 0:00:03]} 59... Kg1 {[%clk 0:00:04.3]} 60. Nf2 {[%clk 0:00:01.8]}
60... Bg2 {[%clk 0:00:04.8]} 61. Nd3 {[%clk 0:00:02.2]} 61... Bb6 {[%clk
0:00:04.5]} 62. Nf2 {[%clk 0:00:02.8]} 62... Bxe3 {[%clk 0:00:04.3]} 63. Kxe3
{[%clk 0:00:03.2]} 63... h5 {[%clk 0:00:05.2]} 64. gxh5 {[%clk 0:00:02.1]} 64...
gxh5 {[%clk 0:00:06.1]} 65. f4 {[%clk 0:00:01.2]} 65... exf4+ {[%clk 0:00:06.1]}
66. Kxf4 {[%clk 0:00:02.1]} 66... Kxf2 {[%clk 0:00:06.3]} 0-1

[Event "Early-Titled-Tuesday-Blitz-September-05-2023"]
[Site "Chess.com"]
[Date "2023.09.05"]
[Round "4"]
[White "XDPS"]
[Black "DenLaz"]
[Result "0-1"]
[WhiteElo "2862"]
[BlackElo "3077"]
[TimeControl "180+1"]
[EndTime "8:39:20 PDT"]
[Termination "DenLaz won on time"]

1. e4 {[%clk 0:03:00.9]} 1... c5 {[%clk 0:02:59.7]} 2. Nf3 {[%clk 0:02:57.9]}
2... e6 {[%clk 0:03:00.4]} 3. g3 {[%clk 0:02:56.4]} 3... Nc6 {[%clk 0:02:58.3]}
4. Bg2 {[%clk 0:02:56.4]} 4... Nf6 {[%clk 0:02:56.7]} 5. Qe2 {[%clk 0:02:55.5]}
5... Be7 {[%clk 0:02:50.7]} 6. O-O {[%clk 0:02:53.1]} 6... O-O {[%clk
0:02:51.2]} 7. e5 {[%clk 0:02:44.2]} 7... Nd5 {[%clk 0:02:50.3]} 8. Re1 {[%clk
0:02:43.6]} 8... d6 {[%clk 0:02:49.6]} 9. exd6 {[%clk 0:02:43.2]} 9... Qxd6
{[%clk 0:02:44.9]} 10. Nc3 {[%clk 0:02:42.9]} 10... b6 {[%clk 0:02:15.1]} 11.
Nxd5 {[%clk 0:02:27.5]} 11... exd5 {[%clk 0:02:13.7]} 12. d4 {[%clk 0:02:26.5]}
12... Bg4 {[%clk 0:01:59.4]} 13. Bf4 {[%clk 0:02:13.7]} 13... Qf6 {[%clk
0:01:26.3]} 14. dxc5 {[%clk 0:02:06.5]} 14... Bxc5 {[%clk 0:01:20.4]} 15. c3
{[%clk 0:02:00.9]} 15... d4 {[%clk 0:01:16.1]} 16. b4 {[%clk 0:01:09.4]} 16...
Bd6 {[%clk 0:01:05.8]} 17. Bxd6 {[%clk 0:01:09.8]} 17... Qxd6 {[%clk 0:01:06.7]}
18. Qe4 {[%clk 0:01:10.2]} 18... Bxf3 {[%clk 0:00:20.7]} 19. Bxf3 {[%clk
0:01:08.6]} 19... Rac8 {[%clk 0:00:21.4]} 20. Rad1 {[%clk 0:01:05.3]} 20... Qf6
{[%clk 0:00:13.4]} 21. b5 {[%clk 0:00:48.2]} 21... Ne5 {[%clk 0:00:10.8]} 22.
Bg2 {[%clk 0:00:30.8]} 22... Nc4 {[%clk 0:00:06.7]} 23. Rxd4 {[%clk 0:00:25.7]}
23... Na3 {[%clk 0:00:06.5]} 24. c4 {[%clk 0:00:23.1]} 24... Nc2 {[%clk
0:00:05.4]} 25. Qxc2 {[%clk 0:00:13.3]} 25... Qxd4 {[%clk 0:00:05.7]} 26. Bc6
{[%clk 0:00:14.1]} 26... Qf6 {[%clk 0:00:05.4]} 27. Re3 {[%clk 0:00:14.1]} 27...
g6 {[%clk 0:00:05.5]} 28. Qe2 {[%clk 0:00:14.2]} 28... Kg7 {[%clk 0:00:05.8]}
29. Rf3 {[%clk 0:00:12.3]} 29... Qa1+ {[%clk 0:00:06]} 30. Kg2 {[%clk
0:00:12.8]} 30... Rc7 {[%clk 0:00:06.6]} 31. Re3 {[%clk 0:00:12.5]} 31... Qd4
{[%clk 0:00:06.3]} 32. Bd5 {[%clk 0:00:12.3]} 32... Qf6 {[%clk 0:00:05.4]} 33.
h4 {[%clk 0:00:12.8]} 33... h5 {[%clk 0:00:05.6]} 34. a4 {[%clk 0:00:13.3]}
34... Rd7 {[%clk 0:00:05.5]} 35. a5 {[%clk 0:00:13.4]} 35... bxa5 {[%clk
0:00:05.5]} 36. Rf3 {[%clk 0:00:14]} 36... Qd4 {[%clk 0:00:05]} 37. Qc2 {[%clk
0:00:13.3]} 37... Rc8 {[%clk 0:00:03.8]} 38. Qa4 {[%clk 0:00:13.1]} 38... Qb6
{[%clk 0:00:03.7]} 39. Qa1+ {[%clk 0:00:13]} 39... f6 {[%clk 0:00:04.3]} 40. Qe1
{[%clk 0:00:12.4]} 40... Qd6 {[%clk 0:00:03.7]} 41. Re3 {[%clk 0:00:12.5]} 41...
Rf8 {[%clk 0:00:03.5]} 42. Re6 {[%clk 0:00:12.9]} 42... Qc5 {[%clk 0:00:04.1]}
43. Qe4 {[%clk 0:00:13.4]} 43... a4 {[%clk 0:00:03.9]} 44. Ra6 {[%clk
0:00:12.6]} 44... a3 {[%clk 0:00:03.6]} 45. Qf3 {[%clk 0:00:12.7]} 45... Qd4
{[%clk 0:00:03.3]} 46. Rxa3 {[%clk 0:00:13.2]} 46... Re7 {[%clk 0:00:03.9]} 47.
Ra6 {[%clk 0:00:13.1]} 47... Qe5 {[%clk 0:00:04.5]} 48. Qd3 {[%clk 0:00:13]}
48... Rfe8 {[%clk 0:00:04.7]} 49. Qf3 {[%clk 0:00:13]} 49... Qd4 {[%clk
0:00:04.9]} 50. Bc6 {[%clk 0:00:13.4]} 50... Rd8 {[%clk 0:00:04.6]} 51. Bd5
{[%clk 0:00:13.8]} 51... Rde8 {[%clk 0:00:05.2]} 52. Rc6 {[%clk 0:00:14.1]}
52... Re2 {[%clk 0:00:04.6]} 53. Rc7+ {[%clk 0:00:13.8]} 53... R8e7 {[%clk
0:00:04.9]} 54. Rc8 {[%clk 0:00:13.1]} 54... Re8 {[%clk 0:00:04.9]} 55. Rc7+
{[%clk 0:00:13.3]} 55... R2e7 {[%clk 0:00:05.3]} 56. Rc6 {[%clk 0:00:14]} 56...
Re2 {[%clk 0:00:05.4]} 57. c5 {[%clk 0:00:13.2]} 57... R2e7 {[%clk 0:00:04.2]}
58. b6 {[%clk 0:00:13.1]} 58... axb6 {[%clk 0:00:04.4]} 59. cxb6 {[%clk
0:00:14]} 59... Rd8 {[%clk 0:00:05]} 60. Bb3 {[%clk 0:00:13.7]} 60... Rb8 {[%clk
0:00:04.7]} 61. Bd5 {[%clk 0:00:12.7]} 61... Rxb6 {[%clk 0:00:04.6]} 62. Rc8
{[%clk 0:00:13.1]} 62... Rd6 {[%clk 0:00:04.5]} 63. Rg8+ {[%clk 0:00:12.5]}
63... Kh7 {[%clk 0:00:04.9]} 64. Bb3 {[%clk 0:00:12.3]} 64... Qe4 {[%clk
0:00:05.4]} 65. Rf8 {[%clk 0:00:11.6]} 65... Qxf3+ {[%clk 0:00:05.6]} 66. Kxf3
{[%clk 0:00:12.1]} 66... Kg7 {[%clk 0:00:06.3]} 67. Rb8 {[%clk 0:00:11.7]} 67...
Rd3+ {[%clk 0:00:06.2]} 68. Kg2 {[%clk 0:00:12]} 68... Rd2 {[%clk 0:00:06.8]}
69. Bc4 {[%clk 0:00:12.1]} 69... Rc7 {[%clk 0:00:07]} 70. Bb3 {[%clk 0:00:04.6]}
70... Rb2 {[%clk 0:00:07.1]} 71. Rb4 {[%clk 0:00:04.3]} 71... Rc3 {[%clk
0:00:07.2]} 72. Rb7+ {[%clk 0:00:05]} 72... Kh6 {[%clk 0:00:07.6]} 73. Bd5
{[%clk 0:00:05.9]} 73... Rd2 {[%clk 0:00:07.6]} 74. Be4 {[%clk 0:00:03.9]} 74...
f5 {[%clk 0:00:07]} 0-1

[Event "Early-Titled-Tuesday-Blitz-September-05-2023"]
[Site "Chess.com"]
[Date "2023.09.05"]
[Round "4"]
[White "Zhani-Z"]
[Black "C_K_G"]
[Result "0-1"]
[WhiteElo "2275"]
[BlackElo "2075"]
[TimeControl "180+1"]
[EndTime "8:39:37 PDT"]
[Termination "C_K_G won on time"]

1. e4 {[%clk 0:03:00.9]} 1... c5 {[%clk 0:02:59.6]} 2. Nf3 {[%clk 0:02:56.3]}
2... d6 {[%clk 0:02:59.7]} 3. Bb5+ {[%clk 0:02:56.4]} 3... Bd7 {[%clk
0:02:59.1]} 4. Bxd7+ {[%clk 0:02:56.8]} 4... Qxd7 {[%clk 0:02:58.6]} 5. O-O
{[%clk 0:02:57.7]} 5... Nc6 {[%clk 0:02:57.6]} 6. c3 {[%clk 0:02:35.7]} 6... Nf6
{[%clk 0:02:56]} 7. Re1 {[%clk 0:02:34.4]} 7... e5 {[%clk 0:02:55.1]} 8. d4
{[%clk 0:02:30.6]} 8... cxd4 {[%clk 0:02:54.5]} 9. cxd4 {[%clk 0:02:31.5]} 9...
Be7 {[%clk 0:02:48.5]} 10. dxe5 {[%clk 0:02:27.6]} 10... dxe5 {[%clk 0:02:46.4]}
11. Qxd7+ {[%clk 0:02:27.4]} 11... Nxd7 {[%clk 0:02:46.5]} 12. Nc3 {[%clk
0:02:28]} 12... O-O {[%clk 0:02:33.7]} 13. Be3 {[%clk 0:02:24.8]} 13... Bc5
{[%clk 0:02:32.3]} 14. Rad1 {[%clk 0:02:22.7]} 14... Bxe3 {[%clk 0:02:28.7]} 15.
Rxd7 {[%clk 0:02:21.7]} 15... Bd4 {[%clk 0:02:24.1]} 16. Rxb7 {[%clk 0:02:16.6]}
16... Bxc3 {[%clk 0:02:18.4]} 17. bxc3 {[%clk 0:02:13]} 17... f6 {[%clk
0:02:15.8]} 18. Rc7 {[%clk 0:02:06.8]} 18... Na5 {[%clk 0:02:09.2]} 19. Rb1
{[%clk 0:02:03.2]} 19... Rfc8 {[%clk 0:02:06.3]} 20. Rxc8+ {[%clk 0:01:53.7]}
20... Rxc8 {[%clk 0:02:03.5]} 21. Rb5 {[%clk 0:01:54.6]} 21... Rxc3 {[%clk
0:01:53.4]} 22. h3 {[%clk 0:01:46.8]} 22... Nc6 {[%clk 0:01:51.1]} 23. a4 {[%clk
0:01:35.4]} 23... a5 {[%clk 0:01:45.9]} 24. Nd2 {[%clk 0:01:27.9]} 24... Kf8
{[%clk 0:01:38.5]} 25. Nb3 {[%clk 0:01:25.4]} 25... Rc4 {[%clk 0:01:29.4]} 26.
Nxa5 {[%clk 0:01:24.2]} 26... Nxa5 {[%clk 0:01:24.2]} 27. Rxa5 {[%clk
0:01:24.2]} 27... Rxe4 {[%clk 0:01:24.8]} 28. Ra8+ {[%clk 0:01:19.7]} 28... Kf7
{[%clk 0:01:24.7]} 29. Ra7+ {[%clk 0:01:19.5]} 29... Kg6 {[%clk 0:01:24.4]} 30.
a5 {[%clk 0:01:12.6]} 30... Re1+ {[%clk 0:01:23.3]} 31. Kh2 {[%clk 0:01:11.6]}
31... Ra1 {[%clk 0:01:22.9]} 32. a6 {[%clk 0:01:10.4]} 32... f5 {[%clk
0:01:22.9]} 33. g4 {[%clk 0:01:01.7]} 33... f4 {[%clk 0:01:16.4]} 34. Kg2 {[%clk
0:00:56.3]} 34... e4 {[%clk 0:01:07.8]} 35. Re7 {[%clk 0:00:50.9]} 35... e3
{[%clk 0:00:54.7]} 36. Re6+ {[%clk 0:00:33.2]} 36... Kg5 {[%clk 0:00:50.6]} 37.
fxe3 {[%clk 0:00:20.5]} 37... fxe3 {[%clk 0:00:48.7]} 38. Rxe3 {[%clk
0:00:20.1]} 38... Rxa6 {[%clk 0:00:46.9]} 39. Kg3 {[%clk 0:00:20.4]} 39... h6
{[%clk 0:00:39.3]} 40. Re7 {[%clk 0:00:18.3]} 40... Kg6 {[%clk 0:00:37.4]} 41.
Re3 {[%clk 0:00:16.2]} 41... Kg5 {[%clk 0:00:37.1]} 42. h4+ {[%clk 0:00:16]}
42... Kg6 {[%clk 0:00:37]} 43. Rf3 {[%clk 0:00:16]} 43... Ra1 {[%clk 0:00:35.3]}
44. h5+ {[%clk 0:00:13.4]} 44... Kh7 {[%clk 0:00:35.2]} 45. Rd3 {[%clk
0:00:12.8]} 45... Rg1+ {[%clk 0:00:33]} 46. Kf4 {[%clk 0:00:12.6]} 46... Rg2
{[%clk 0:00:28]} 47. Kf5 {[%clk 0:00:05.5]} 47... Rf2+ {[%clk 0:00:27.7]} 48.
Ke4 {[%clk 0:00:05.1]} 48... Kg8 {[%clk 0:00:25.4]} 49. Rd8+ {[%clk 0:00:04.8]}
49... Kf7 {[%clk 0:00:24.7]} 50. Rd7+ {[%clk 0:00:05.2]} 50... Kf6 {[%clk
0:00:22.3]} 51. Rd6+ {[%clk 0:00:05.1]} 51... Ke7 {[%clk 0:00:19]} 52. Ra6
{[%clk 0:00:05.2]} 52... Rf1 {[%clk 0:00:17.6]} 53. Ke5 {[%clk 0:00:04.9]} 53...
Kf7 {[%clk 0:00:14.6]} 54. Ra7+ {[%clk 0:00:04.2]} 54... Kg8 {[%clk 0:00:14.7]}
55. Ke6 {[%clk 0:00:04.3]} 55... Rf4 {[%clk 0:00:13.9]} 56. Ra8+ {[%clk
0:00:03]} 56... Kh7 {[%clk 0:00:13.6]} 57. g5 {[%clk 0:00:03.1]} 57... hxg5
{[%clk 0:00:13.4]} 58. Ra5 {[%clk 0:00:03.7]} 58... Kh6 {[%clk 0:00:13.3]} 59.
Ke5 {[%clk 0:00:03]} 59... Rf1 {[%clk 0:00:12.7]} 60. Ra7 {[%clk 0:00:02.7]}
60... Kxh5 {[%clk 0:00:12.9]} 61. Rxg7 {[%clk 0:00:02.7]} 61... g4 {[%clk
0:00:12.5]} 62. Rh7+ {[%clk 0:00:02.7]} 62... Kg5 {[%clk 0:00:12.7]} 63. Rh8
{[%clk 0:00:03.3]} 63... g3 {[%clk 0:00:12.3]} 64. Rg8+ {[%clk 0:00:02.6]} 64...
Kh4 {[%clk 0:00:12.6]} 65. Ke4 {[%clk 0:00:02.7]} 65... Kh3 {[%clk 0:00:12.6]}
66. Ke3 {[%clk 0:00:02.8]} 66... Kh2 {[%clk 0:00:11.2]} 67. Rh8+ {[%clk
0:00:02.7]} 67... Kg1 {[%clk 0:00:10.7]} 68. Ke2 {[%clk 0:00:02.7]} 68... Rf5
{[%clk 0:00:09.6]} 69. Rg8 {[%clk 0:00:02.7]} 69... g2 {[%clk 0:00:09.3]} 70.
Ke3 {[%clk 0:00:02.3]} 70... Kf1 {[%clk 0:00:08]} 0-1